bitfinex/quotes_ETHUSD_20250620
["timestamp","ask_amount","ask_price","bid_price","bid_amount"]
[1750412876598,10.0,2555.3,2555.2,3.91358797]
[1750412876744,0.58504116,2555.3,2555.2,3.91358797]
[1750412877051,0.62411232,2555.4,2555.2,3.91352428]
[1750412877253,0.03907112,2555.4,2555.2,3.91352428]
[1750412877467,0.62411382,2555.4,2555.3,3.91343482]
[1750412877653,0.5850427,2555.4,2555.2,3.91354596]
[1750412877860,0.62411382,2555.4,2555.2,3.91354596]
[1750412878042,0.62411382,2555.4,2555.1,3.91365805]
[1750412878373,10.58510698,2555.3,2555.0,4.69350801]
[1750412878547,0.36570168,2555.2,2555.0,3.91380801]
[1750412878867,0.3657071,2555.2,2555.1,3.91374114]
[1750412879370,10.0,2555.3,2555.2,3.91358797]
[1750412879572,0.3655659,2555.3,2555.2,3.91358797]
[1750412879778,0.36558472,2555.4,2555.3,3.91340635]
[1750412880284,10.0,2555.4,2555.3,3.91340635]
[1750412880491,10.36558759,2555.4,2555.3,3.91340635]
[1750412880640,0.36558759,2555.4,2555.3,3.91340635]
[1750412880977,10.0,2555.4,2555.3,3.91340635]
[1750412881186,10.36558759,2555.4,2555.3,3.91340635]
[1750412881744,10.36556327,2555.4,2555.3,3.91340635]
[1750412881945,0.36556327,2555.4,2555.3,3.91343482]
[1750412882160,10.25841255,2555.5,2555.1,0.8173]
[1750412882358,10.0,2555.5,2555.4,3.91328167]
[1750412882563,10.36540294,2555.5,2555.4,3.91328167]
[1750412882781,10.36540294,2555.5,2555.3,3.91331699]
[1750412883080,16.76303563,2555.5,2555.1,4.73099592]
[1750412883288,6.76303563,2555.3,2555.2,3.91356609]
[1750412883593,6.76303563,2555.3,2555.0,3.9138044]
[1750412883792,6.76303563,2555.3,2555.0,3.91383506]
[1750412884288,6.76303563,2555.3,2555.1,3.91374041]
[1750412884785,6.76303563,2555.3,2555.2,3.91358797]
[1750412885006,10.0,2555.2,2554.7,0.7891]
[1750412885143,6.80210675,2555.1,2554.8,3.9140866]
[1750412885493,10.71586867,2555.1,2554.6,3.91450716]
[1750412885652,0.7864,2554.8,2554.6,3.9144013]
[1750412885850,0.7864,2554.8,2554.5,3.91453662]
[1750412885851,0.82547112,2554.8,2554.5,3.91453662]
[1750412886052,0.82547112,2554.8,2554.6,3.91449143]
[1750412887575,0.82547112,2554.8,2554.7,3.91435393]
[1750412887776,0.7864,2554.8,2554.7,3.91435393]
[1750412888587,0.7864,2554.8,2554.6,3.91441714]
[1750412888795,0.7864,2554.8,2554.7,3.91435393]
[1750412889385,6.334,2554.9,2554.8,3.9141402]
[1750412889587,6.69995999,2554.9,2554.8,3.9141402]
[1750412889857,0.36595999,2554.9,2554.8,3.9141402]
[1750412890197,6.37307112,2555.0,2554.8,3.9141402]
[1750412890375,6.37307112,2555.1,2554.9,3.91404751]
[1750412890576,0.21964246,2555.0,2554.9,3.91404751]
[1750412891099,0.58566194,2555.0,2554.9,3.91404751]
[1750412891790,0.21964448,2555.0,2554.9,3.91404751]
[1750412892009,0.58575886,2555.0,2554.9,3.91404751]
[1750412892158,0.21966435,2555.0,2554.9,3.91404751]
[1750412892358,0.21972787,2555.0,2554.9,3.91404751]
[1750412892690,0.58594193,2555.0,2554.9,3.91404751]
[1750412893058,0.36621406,2555.0,2554.9,3.91404751]
[1750412893274,0.58594203,2555.0,2554.9,3.91404751]
[1750412893595,0.58594192,2555.0,2554.9,3.91404751]
[1750412893797,0.58594192,2555.0,2554.8,3.91410987]
[1750412893984,0.36621365,2554.9,2554.8,3.91410987]
[1750412894294,0.5860024,2555.0,2554.8,3.91410987]
[1750412894594,0.36625078,2554.9,2554.8,3.91410987]
[1750412894793,0.36637835,2554.9,2554.7,3.91425342]
[1750412894981,1.18577835,2554.9,2554.7,3.91425342]
[1750412895152,7.1544,2555.1,2554.9,3.91401288]
[1750412895350,0.58619216,2555.0,2554.9,3.91401288]
[1750412896066,0.58624614,2555.0,2554.9,3.91401288]
[1750412896894,10.0,2555.1,2555.0,3.91389432]
[1750412897072,10.586239,2555.1,2555.0,3.91389432]
[1750412897399,0.58623765,2555.1,2555.0,3.91389432]
[1750412897891,0.58623765,2555.1,2554.9,3.91396685]
[1750412897892,0.58624909,2555.1,2554.9,3.91396685]
[1750412898096,0.58619809,2555.0,2554.9,3.91396685]
[1750412898256,0.36637381,2555.0,2554.9,3.91396685]
[1750412898903,6.334,2555.4,2555.2,3.91353423]
[1750412899197,6.334,2555.4,2554.9,0.03913637]
[1750412899198,10.586254,2555.3,2554.9,0.03913637]
[1750412899495,10.0,2555.5,2555.2,3.91358797]
[1750412899698,0.8234,2555.7,2555.2,3.91344889]
[1750412899699,0.58625654,2555.4,2555.2,3.91344889]
[1750412899859,0.58628957,2555.3,2555.2,4.73054889]
[1750412900060,0.21985858,2555.3,2555.2,4.73054889]
[1750412900380,0.3664346,2555.3,2555.2,4.73054889]
[1750412900696,0.58629934,2555.3,2555.2,4.73066062]
[1750412900872,0.58629435,2555.3,2555.2,4.73066062]
[1750412901068,0.21985063,2555.4,2555.3,3.91332265]
[1750412901269,0.58626852,2555.4,2555.3,3.91332265]
[1750412901778,0.58626868,2555.4,2555.3,3.91332265]
[1750412902393,0.36634224,2555.4,2555.3,3.91332265]
[1750412902797,0.58611765,2555.4,2555.3,3.91332265]
[1750412902956,0.36632269,2555.4,2555.3,3.91332265]
[1750412903159,0.58611765,2555.4,2555.3,3.91332265]
[1750412903358,0.36630314,2555.4,2555.3,3.91332265]
[1750412903555,0.5860981,2555.4,2555.3,3.91332265]
[1750412903759,0.36630314,2555.4,2555.3,3.91332265]
[1750412903956,0.58606617,2555.4,2555.3,3.91342397]
[1750412904198,0.58606959,2555.4,2555.3,3.91342397]
[1750412904504,0.58607412,2555.4,2555.3,3.91342397]
[1750412904705,0.58606785,2555.4,2555.3,3.91342397]
[1750412904871,0.21978036,2555.5,2555.4,3.91328167]
[1750412905066,0.58608046,2555.5,2555.4,3.91328167]
[1750412905377,0.58606037,2555.5,2555.4,3.91328167]
[1750412905693,0.36630034,2555.5,2555.4,3.91328167]
[1750412906004,0.58606262,2555.5,2555.4,3.91328167]
[1750412906311,0.62503904,2555.6,2555.4,3.91328167]
[1750412906486,0.58596789,2555.5,2555.4,3.91328167]
[1750412906882,0.21966721,2555.5,2555.4,3.91328167]
[1750412907101,0.3661121,2555.5,2555.4,3.91328167]
[1750412907276,0.36611032,2555.5,2555.4,3.91328167]
[1750412907606,0.36611285,2555.5,2555.4,3.91328167]
[1750412908369,0.58577845,2555.6,2555.5,4.74032854]
[1750412908570,0.58578038,2555.6,2555.5,4.74032854]
[1750412908887,0.5857825,2555.6,2555.5,4.74032854]
[1750412909301,0.58561738,2555.6,2555.5,4.74032854]
[1750412909612,0.5854299,2555.6,2555.5,4.74032854]
[1750412909809,0.21953666,2555.6,2555.5,4.74032854]
[1750412910013,0.58543109,2555.6,2555.5,4.74032854]
[1750412910315,0.5854327,2555.6,2555.5,4.74032854]
[1750412910528,0.36589927,2555.6,2555.5,1.77899764]
[1750412910827,0.58543605,2555.6,2555.5,5.69212618]
[1750412911031,0.36589927,2555.6,2555.5,5.69212618]
[1750412911187,0.36589641,2555.6,2555.5,5.69212618]
[1750412911393,0.58543412,2555.6,2555.5,5.69212618]
[1750412911724,0.58543608,2555.6,2555.5,0.95179764]
[1750412911876,0.62450491,2555.6,2554.9,1.623]
[1750412912075,6.76303563,2555.5,2555.2,3.9135871]
[1750412912898,13.91291605,2555.7,2555.2,3.9135871]
[1750412913105,10.62443921,2555.6,2555.3,3.91342946]
[1750412913303,0.5853689,2555.5,2555.3,3.91342946]
[1750412913813,0.36585587,2555.5,2555.2,3.91350837]
[1750412914015,0.36585587,2555.5,2555.0,11.00433157]
[1750412914016,6.76303563,2555.5,2555.0,11.00433157]
[1750412914218,0.40492699,2555.4,2555.2,3.91358093]
[1750412914781,0.40492699,2555.4,2555.1,5.17639362]
[1750412914980,0.40494175,2555.4,2555.2,3.9135665]
[1750412915797,0.40501686,2555.4,2555.2,3.9135665]
[1750412916628,0.40502788,2555.4,2555.2,3.9135665]
[1750412916831,0.40502897,2555.4,2555.2,3.9135665]
[1750412917031,0.03907112,2555.4,2555.2,3.9135665]
[1750412917235,0.40502395,2555.4,2555.2,3.9135665]
[1750412917742,0.03907112,2555.4,2555.1,1.26273316]
[1750412918040,6.76303563,2555.3,2554.9,3.91392181]
[1750412918334,5.30517318,2555.2,2554.8,3.91420072]
[1750412918494,0.80607112,2555.2,2554.8,3.91420072]
[1750412919025,4.71966044,2555.2,2554.8,3.91420072]
[1750412919201,0.80607112,2555.2,2554.9,3.91403885]
[1750412920187,4.7196591,2555.2,2554.8,3.91411055]
[1750412920394,0.36599828,2555.1,2554.7,3.91428385]
[1750412920588,0.36599828,2555.1,2554.8,3.91420058]
[1750412921310,0.36599828,2555.1,2554.9,3.91402155]
[1750412921754,0.36601586,2555.1,2554.9,3.91402155]
[1750412922048,0.36601859,2555.1,2554.9,3.91402155]
[1750412922258,0.36601859,2555.1,2555.0,3.91389432]
[1750412922259,0.36601867,2555.1,2555.0,3.91389432]
[1750412922704,0.36601867,2555.1,2554.9,3.91397558]
[1750412923046,0.36601709,2555.1,2554.9,3.91397558]
[1750412923552,0.36601709,2555.1,2554.9,3.91395361]
[1750412923942,0.40508821,2555.1,2554.8,3.91412324]
[1750412924457,0.767,2555.2,2554.9,3.91404559]
[1750412924458,0.80607112,2555.2,2554.9,3.91404559]
[1750412924948,0.36593368,2555.1,2554.9,3.91404559]
[1750412925308,0.36594327,2555.1,2555.0,3.91388431]
[1750412925766,0.36594599,2555.1,2555.0,3.91388431]
[1750412926401,0.58558381,2555.1,2555.0,3.91388431]
[1750412926897,0.58570047,2555.1,2554.9,3.91399481]
[1750412927129,0.36606177,2555.1,2554.9,3.91399481]
[1750412927350,0.58570085,2555.1,2555.0,3.91389432]
[1750412927512,0.58570366,2555.1,2555.0,3.91389432]
[1750412927871,0.58570346,2555.1,2555.0,3.91389432]
[1750412928037,0.58570187,2555.1,2555.0,3.91389432]
[1750412928642,0.58570187,2555.1,2554.9,3.91395507]
[1750412928819,0.36606367,2555.0,2554.9,3.91395507]
[1750412929538,0.58570188,2555.1,2554.9,3.91395507]
[1750412929839,0.36606257,2555.0,2554.9,3.91395507]
[1750412930016,0.36606702,2555.0,2554.9,3.91395507]
[1750412930212,6.98267384,2555.1,2554.6,0.03914112]
[1750412930434,0.62470751,2555.0,2554.5,0.7523]
[1750412930617,0.36596982,2554.9,2554.8,3.91418406]
[1750412931305,0.36596264,2554.9,2554.8,3.91418406]
[1750412931638,0.58553983,2555.0,2554.8,3.91418406]
[1750412931805,0.36596264,2554.9,2554.8,3.91418406]
[1750412932206,0.58550933,2555.0,2554.8,3.91418406]
[1750412932630,0.36596264,2555.0,2554.8,3.91418406]
[1750412932830,0.58549047,2555.0,2554.8,3.91418406]
[1750412933207,0.36596264,2555.0,2554.8,3.91418406]
[1750412933526,0.58528553,2555.0,2554.8,3.91418406]
[1750412933751,0.58528434,2555.0,2554.8,3.91418406]
[1750412934620,0.36575477,2554.9,2554.8,3.91418406]
[1750412934941,0.5851812,2555.0,2554.8,3.91418406]
[1750412935741,0.36575477,2555.0,2554.8,3.91418406]
[1750412935930,0.58515581,2555.0,2554.8,3.91418406]
[1750412936103,6.37307112,2555.1,2554.7,3.91426566]
[1750412936308,0.21942191,2555.0,2554.7,3.91426566]
[1750412936642,0.21942191,2555.0,2554.6,3.91443716]
[1750412936643,0.03907112,2554.9,2554.6,3.91443716]
[1750412936806,0.03907112,2554.9,2554.7,3.91434835]
[1750412937509,0.40477073,2554.9,2554.7,3.91434835]
[1750412937721,0.03907112,2554.9,2554.7,3.91434835]
[1750412939044,0.40477074,2554.9,2554.6,3.91441394]
[1750412939447,0.40487258,2554.9,2554.6,3.91441394]
[1750412941149,0.40487258,2554.9,2554.7,3.91435011]
[1750412941949,0.03907112,2554.9,2554.7,3.91435011]
[1750412942106,0.40504018,2554.9,2554.7,3.91435011]
[1750412942535,0.36609341,2554.8,2554.7,3.91435011]
[1750412943026,0.36609341,2554.9,2554.7,3.91435011]
[1750412943223,0.36609341,2554.8,2554.7,3.91435011]
[1750412943446,0.58574947,2554.9,2554.7,3.91435011]
[1750412943753,0.36609341,2554.8,2554.7,3.91435011]
[1750412943929,0.36609341,2554.9,2554.7,3.91435011]
[1750412944128,0.36609341,2554.8,2554.7,3.91435011]
[1750412944331,0.25872703,2555.0,2554.7,3.91435011]
[1750412944539,0.36608246,2554.9,2554.7,3.91435011]
[1750412944729,0.36608246,2554.8,2554.7,3.91435011]
[1750412944929,0.5857318,2554.9,2554.5,0.7523]
[1750412945246,0.36607858,2554.8,2554.6,3.91442386]
[1750412945615,0.36607787,2554.8,2554.6,3.91442386]
[1750412945955,0.36607752,2554.8,2554.7,3.91435393]
[1750412946135,0.8151,2554.9,2554.7,3.91435393]
[1750412946340,0.58609985,2554.8,2554.7,3.91435393]
[1750412946816,0.21978726,2554.8,2554.7,3.91435393]
[1750412947153,0.58606602,2554.8,2554.7,3.91435393]
[1750412947326,0.58604566,2554.8,2554.7,3.91435393]
[1750412947527,0.58604458,2554.8,2554.7,3.91435393]
[1750412947923,0.36627821,2554.8,2554.7,3.91435393]
[1750412948827,0.36636475,2554.8,2554.7,3.91435393]
[1750412949229,0.36638815,2554.8,2554.7,3.91435393]
[1750412949665,0.36637942,2554.8,2554.3,0.7596]
[1750412949964,0.58621186,2554.7,2554.5,3.91456012]
[1750412950265,0.58623848,2554.6,2554.5,3.91456012]
[1750412950632,0.03907112,2554.7,2554.5,3.91456012]
[1750412950837,0.58632451,2554.6,2554.5,3.91456012]
[1750412951563,0.36645282,2554.6,2554.5,3.91456012]
[1750412951769,0.58632451,2554.6,2554.5,3.91456012]
[1750412952129,0.58622178,2554.6,2554.5,3.91456012]
[1750412952464,0.58622178,2554.6,2554.3,3.91493981]
[1750412952465,0.36633742,2554.6,2554.3,3.91493981]
[1750412952769,0.40540854,2554.5,2554.1,3.91520142]
[1750412952925,0.03907112,2554.5,2554.2,3.91503631]
[1750412953130,0.03907112,2554.5,2554.1,3.91520142]
[1750412953131,0.36640906,2554.4,2554.3,3.91495502]
[1750412953546,0.03907112,2554.6,2554.3,3.91495502]
[1750412953756,7.34928174,2554.5,2554.0,0.811]
[1750412953957,10.8231,2554.2,2553.5,0.815]
[1750412954163,10.8231,2554.2,2553.5,4.73107787]
[1750412954164,11.30352066,2554.1,2553.5,4.73107787]
[1750412954478,4.54053264,2554.0,2553.5,4.73107787]
[1750412954673,0.40547494,2554.0,2553.5,4.73107787]
[1750412954874,0.40547494,2554.0,2553.7,3.91587187]
[1750412955074,0.03907112,2554.0,2553.6,3.91596848]
[1750412955448,3.95451335,2554.0,2553.5,4.73112184]
[1750412955647,0.03907112,2554.0,2553.5,4.73112184]
[1750412956475,0.03907112,2554.0,2553.6,3.91603216]
[1750412956969,10.03907112,2554.0,2553.4,3.91627818]
[1750412957172,0.8108,2553.9,2553.4,3.91627818]
[1750412957346,3.95488257,2553.8,2553.3,4.67036823]
[1750412957744,3.91589025,2553.7,2553.3,0.7539]
[1750412957944,14.76598587,2553.6,2553.0,0.7539]
[1750412958149,14.76598587,2553.6,2552.9,3.91703835]
[1750412958150,0.03907112,2553.5,2552.9,3.91703835]
[1750412958367,0.03907112,2553.5,2553.0,3.91694868]
[1750412958570,3.9553144,2553.5,2553.0,3.91694868]
[1750412958775,0.03907112,2553.4,2553.0,3.91694868]
[1750412959273,0.03907112,2553.4,2553.1,3.91679322]
[1750412959470,0.03907112,2553.4,2553.0,3.91688573]
[1750412959788,0.03907112,2553.5,2553.2,3.91664032]
[1750412960641,0.03907112,2553.5,2552.9,3.91711387]
[1750412960847,6.80210675,2553.5,2552.8,0.7539]
[1750412961071,3.9164451,2553.4,2552.9,3.91705068]
[1750412961277,0.03907112,2553.4,2553.0,3.91688693]
[1750412962160,0.03907112,2553.4,2553.0,3.91694666]
[1750412962783,10.03907112,2553.4,2552.8,0.7539]
[1750412962975,10.0,2553.4,2552.9,3.91709422]
[1750412963188,0.03907112,2553.3,2552.9,3.91709422]
[1750412963852,0.03907112,2553.3,2552.8,4.67116083]
[1750412964191,4.72302889,2553.2,2552.7,3.91742077]
[1750412964492,0.03907112,2553.1,2552.8,3.91726338]
[1750412964690,0.84537112,2553.2,2552.8,3.91726338]
[1750412965148,10.84537112,2553.2,2552.7,3.91739097]
[1750412965349,3.91682717,2553.1,2552.6,4.69928835]
[1750412965578,0.03907112,2553.0,2552.7,3.91739222]
[1750412965791,0.03907112,2553.1,2552.7,3.91739222]
[1750412966107,0.03907112,2553.1,2552.8,3.91726464]
[1750412968490,10.0,2553.2,2552.9,3.91710292]
[1750412968853,0.81067112,2553.1,2552.8,3.91717668]
[1750412969553,4.72754802,2553.1,2552.6,4.69923979]
[1750412969754,0.81067112,2553.1,2552.7,3.91735219]
[1750412969994,0.81067112,2553.1,2552.9,3.91702165]
[1750412970293,0.03907112,2553.0,2552.6,3.91742217]
[1750412970454,0.03907112,2553.0,2552.7,3.91735115]
[1750412970999,6.80210675,2553.0,2552.4,0.7779]
[1750412971167,0.8054,2552.7,2552.4,3.91787833]
[1750412971351,0.84447112,2552.7,2552.4,3.91787833]
[1750412972279,0.84447112,2552.7,2552.2,3.9181058]
[1750412972280,4.76195802,2552.7,2552.2,3.91805431]
[1750412972484,0.84447112,2552.7,2552.3,3.91803471]
[1750412972669,0.84447112,2552.7,2552.4,3.91786722]
[1750412972995,0.84447112,2552.7,2552.2,3.91807961]
[1750412972996,4.76189369,2552.7,2552.2,3.91807961]
[1750412973196,4.76189369,2552.7,2552.3,3.91802365]
[1750412973412,0.84447112,2552.7,2552.2,3.91816965]
[1750412973617,0.84447112,2552.7,2552.3,3.91796922]
[1750412973982,0.84447112,2552.7,2552.4,3.91787445]
[1750412974417,0.84447112,2552.7,2552.2,3.91816965]
[1750412974418,0.84447112,2552.7,2552.0,0.03917929]
[1750412974593,0.84447112,2552.7,2552.4,3.91780659]
[1750412975320,0.84447112,2552.7,2552.5,3.91770289]
[1750412975634,7.1141,2552.9,2552.8,3.91726731]
[1750412975787,7.15317112,2552.9,2552.6,3.91750407]
[1750412975978,7.15317112,2552.9,2552.7,3.91733308]
[1750412977137,10.81617112,2552.9,2552.7,3.91733308]
[1750412977296,10.7771,2552.9,2552.7,3.91733308]
[1750412977505,10.7695,2553.1,2552.4,3.9178812]
[1750412977710,0.40342191,2553.0,2552.8,3.91718215]
[1750412978211,6.74041987,2553.0,2552.8,3.91718215]
[1750412978442,10.0,2552.9,2552.8,3.91718215]
[1750412978924,10.0,2552.9,2552.7,3.91734365]
[1750412980982,10.0,2552.9,2552.3,4.6705266]
[1750412981182,10.0,2552.9,2552.7,3.91740958]
[1750412981387,10.0,2552.9,2552.6,3.91755534]
[1750412982002,0.3649837,2552.8,2552.6,3.91755534]
[1750412982199,0.3649837,2552.8,2552.3,0.7525]
[1750412982200,0.36500221,2552.8,2552.3,0.7525]
[1750412982404,0.36500221,2552.8,2552.5,3.91760953]
[1750412982613,0.36500221,2552.8,2552.6,3.91755001]
[1750412982812,0.40407333,2552.8,2552.3,4.67046798]
[1750412983019,0.40410865,2552.8,2552.4,3.91776397]
[1750412983204,0.40411652,2552.8,2552.5,3.91764851]
[1750412983633,0.40411652,2552.8,2552.6,3.91756517]
[1750412983634,0.36504275,2552.8,2552.6,3.91756517]
[1750412983929,0.36503536,2552.8,2552.6,3.91756517]
[1750412984292,10.0,2552.9,2552.6,3.91756517]
[1750412984494,0.3653278,2552.8,2552.6,3.91756517]
[1750412985109,0.3653278,2552.8,2552.5,3.91764368]
[1750412985309,0.40445131,2552.8,2552.5,3.91764368]
[1750412985505,0.03907112,2552.8,2552.5,3.91764368]
[1750412985711,0.40445173,2552.8,2552.5,3.91764368]
[1750412986108,0.03907112,2552.8,2552.5,3.91764368]
[1750412986309,0.40458395,2552.8,2552.5,3.91764368]
[1750412986727,0.36551283,2552.7,2552.5,3.91764368]
[1750412987134,0.36551283,2552.7,2552.6,3.91757423]
[1750412987336,0.58507076,2552.8,2552.6,3.91757423]
[1750412987632,0.36566901,2552.7,2552.6,3.91757423]
[1750412987838,0.21940175,2552.8,2552.6,3.91757423]
[1750412987999,0.36580351,2552.7,2552.6,3.91757423]
[1750412988836,0.36570393,2552.7,2552.6,3.91757423]
[1750412989137,10.0,2552.9,2552.6,3.91757423]
[1750412989335,0.58508491,2552.8,2552.6,3.91757423]
[1750412989634,0.36567686,2552.7,2552.6,3.91757423]
[1750412989936,0.36567576,2552.7,2552.5,3.91764991]
[1750412990238,0.36571355,2552.6,2552.5,3.91764991]
[1750412990438,0.03907112,2552.8,2552.5,3.91764991]
[1750412990439,0.3657142,2552.7,2552.5,3.91764991]
[1750412990736,0.3657142,2552.6,2552.4,3.9177761]
[1750412991536,0.36573463,2552.6,2552.5,3.91771229]
[1750412992043,0.36573463,2552.7,2552.5,3.91771229]
[1750412992227,0.36573463,2552.6,2552.5,3.91771229]
[1750412992422,0.36573463,2552.7,2552.5,3.91771229]
[1750412992621,0.36573463,2552.6,2552.5,3.91771229]
[1750412992937,0.36582283,2552.6,2552.5,3.91771229]
[1750412993112,0.3658276,2552.6,2552.5,3.91771229]
[1750412994434,6.59661585,2552.8,2552.5,3.91771229]
[1750412994641,0.58545422,2552.7,2552.5,3.91771229]
[1750412994839,0.36590949,2552.6,2552.5,3.91771229]
[1750412995338,0.36594289,2552.6,2552.5,3.91771229]
[1750412996037,6.37707112,2552.8,2552.5,3.91771229]
[1750412996224,0.58551104,2552.7,2552.5,3.91771229]
[1750412996429,0.36594409,2552.6,2552.5,3.91771229]
[1750412997717,0.36599675,2552.6,2552.5,3.91771229]
[1750412997918,0.21959805,2552.7,2552.6,3.91757423]
[1750412998119,0.58569334,2552.7,2552.5,3.91764944]
[1750412998319,0.36611884,2552.6,2552.5,3.91764944]
[1750412999846,0.36611884,2552.6,2552.5,4.964879]
[1750413000011,10.03907112,2553.2,2552.8,0.7766]
[1750413000206,0.58649156,2553.1,2552.9,0.03917068]
[1750413000439,0.58649156,2553.0,2552.9,3.91711387]
[1750413000641,0.21997137,2553.1,2553.0,3.91689337]
[1750413000826,0.58660143,2553.1,2553.0,3.91689337]
[1750413001034,0.58660143,2553.1,2553.0,3.91696043]
[1750413001232,0.58660143,2553.1,2553.0,4.77802449]
[1750413001432,0.58669447,2553.1,2553.0,4.77802449]
[1750413001612,2.29422496,2553.3,2553.2,3.91665361]
[1750413001810,2.88097651,2553.3,2553.2,3.91665361]
[1750413002014,12.88097506,2553.3,2553.2,3.91665361]
[1750413002347,12.29422496,2553.3,2553.2,4.74555361]
[1750413002536,12.88097951,2553.3,2553.2,4.74555361]
[1750413003250,19.64401514,2553.3,2552.6,0.8289]
[1750413003492,0.62536016,2553.2,2553.1,3.91680701]
[1750413003660,0.58628904,2553.2,2553.1,3.91680701]
[1750413004012,0.58629325,2553.2,2553.1,3.91680701]
[1750413004646,0.58600947,2553.2,2553.1,3.91680701]
[1750413005146,0.58601402,2553.2,2553.1,3.91680701]
[1750413005325,0.58602155,2553.2,2553.0,3.91684265]
[1750413005526,0.36626345,2553.1,2553.0,3.91684265]
[1750413005747,0.36626345,2553.1,2552.9,3.91707113]
[1750413006048,0.2197581,2553.2,2553.0,3.9169254]
[1750413006343,0.2197581,2553.2,2553.0,3.91688324]
[1750413007349,0.2197581,2553.2,2553.1,3.91680701]
[1750413007539,0.7741,2553.1,2552.7,3.91728882]
[1750413007849,14.17567241,2553.0,2552.6,3.9175562]
[1750413008036,14.17567241,2553.0,2552.4,3.91778498]
[1750413008037,0.7741,2552.7,2552.4,3.91778835]
[1750413008237,0.7741,2552.7,2552.3,3.91793306]
[1750413008551,10.0,2552.8,2552.6,3.91757423]
[1750413010339,10.0,2552.8,2552.7,3.91742077]
[1750413010512,0.21962158,2552.8,2552.7,3.91742077]
[1750413010717,10.0,2553.2,2552.6,3.917542]
[1750413010718,2.29422496,2553.3,2553.2,3.91665361]
[1750413010922,2.51384547,2553.3,2553.2,3.91665361]
[1750413011139,2.29422496,2553.3,2553.2,3.91665361]
[1750413012632,2.29422496,2553.3,2552.9,0.778]
[1750413012633,2.29422496,2553.3,2553.1,3.91672234]
[1750413012837,2.29422496,2553.3,2552.9,4.69507953]
[1750413012838,3.12709608,2553.3,2553.0,3.91687821]
[1750413013264,3.12709608,2553.3,2552.9,3.91705245]
[1750413013569,13.80670079,2553.3,2552.8,3.91718741]
[1750413013773,13.80670079,2553.3,2552.4,11.05667455]
[1750413013774,0.2586911,2553.2,2552.9,3.91702322]
[1750413013939,0.03907112,2553.1,2552.8,3.91718724]
[1750413015041,6.38107112,2553.2,2552.9,3.9171091]
[1750413015241,6.38107112,2553.2,2553.0,3.91696043]
[1750413015444,6.38107112,2553.2,2552.9,3.91703303]
[1750413015445,0.807,2553.1,2552.9,3.91703303]
[1750413017288,6.38107112,2553.2,2553.0,3.91696043]
[1750413017289,0.03907112,2553.2,2553.0,3.91696043]
[1750413017573,0.03907112,2553.2,2553.1,3.91680701]
[1750413017574,6.56057495,2553.2,2553.1,3.91680701]
[1750413017873,0.36596513,2553.2,2553.1,3.91680701]
[1750413018046,0.36596548,2553.2,2553.1,3.91680701]
[1750413018251,0.36597185,2553.2,2553.1,3.91680701]
[1750413019001,0.58555277,2553.2,2553.0,3.91687097]
[1750413019305,0.36597099,2553.1,2553.0,3.91687097]
[1750413019499,11.02002496,2553.3,2553.1,3.91680004]
[1750413019666,0.58555401,2553.2,2553.1,3.91680004]
[1750413020602,0.36597126,2553.2,2553.1,3.91680004]
[1750413021600,0.36597126,2553.2,2553.1,4.70409257]
[1750413021901,2.29422496,2553.3,2553.2,3.91665361]
[1750413022113,12.87984682,2553.3,2553.2,3.91665361]
[1750413022482,12.8798492,2553.3,2553.2,3.91665361]
[1750413022821,12.66024095,2553.3,2553.2,3.91665361]
[1750413022965,12.66024095,2553.3,2553.2,4.77872823]
[1750413023166,12.66024095,2553.3,2553.2,3.91665361]
[1750413023523,12.87977202,2553.3,2553.1,3.91675274]
[1750413023702,0.3659705,2553.2,2553.1,3.91675274]
[1750413024368,0.58560257,2553.2,2553.1,3.91680701]
[1750413025063,0.58569144,2553.2,2553.1,3.91680701]
[1750413025466,0.58569144,2553.2,2552.9,3.91696476]
[1750413025713,0.36605715,2553.1,2553.0,3.91684428]
[1750413026010,0.3660545,2553.1,2553.0,3.91684428]
[1750413026703,0.58570426,2553.2,2553.1,3.91680701]
[1750413027007,0.3660545,2553.2,2553.1,3.91680701]
[1750413027183,12.29422496,2553.3,2553.2,3.91665361]
[1750413027517,12.87999933,2553.3,2553.2,3.91665361]
[1750413027697,12.66033393,2553.3,2553.2,3.91665361]
[1750413027892,12.66032888,2553.3,2553.2,4.7437237]
[1750413028211,12.8800631,2553.3,2553.2,5.5280237]
[1750413028394,12.88018393,2553.3,2553.2,5.5280237]
[1750413028709,12.88018499,2553.3,2553.2,5.5280237]
[1750413029015,12.8801843,2553.3,2553.2,5.5280237]
[1750413029312,2.29422496,2553.3,2553.2,12.88022456]
[1750413029513,0.03907112,2554.1,2553.9,3.91543842]
[1750413029683,0.58608799,2554.0,2553.9,3.91558009]
[1750413030017,1.623,2554.2,2554.1,3.91527348]
[1750413030175,2.20917979,2554.2,2554.1,3.91527348]
[1750413030511,0.58617979,2554.2,2554.1,3.91527348]
[1750413030817,0.03907112,2554.4,2554.3,3.91496691]
[1750413030969,0.58518617,2554.4,2554.2,3.9150427]
[1750413031167,0.58519344,2554.3,2554.2,3.9150427]
[1750413031368,0.36574119,2554.3,2554.2,3.9150427]
[1750413031674,0.36574119,2554.3,2554.2,4.78073432]
[1750413031904,0.58522369,2554.5,2554.3,3.91489712]
[1750413032089,0.2194825,2554.5,2554.4,3.91481365]
[1750413032290,0.5852856,2554.5,2554.4,3.91481365]
[1750413032575,0.58528572,2554.5,2554.3,3.91485534]
[1750413032777,0.40487553,2554.4,2553.9,0.8266]
[1750413033082,6.76303563,2554.3,2554.0,3.91534734]
[1750413033817,0.03907112,2554.4,2554.1,3.91521782]
[1750413033987,0.40423885,2554.4,2554.1,3.91521782]
[1750413034175,0.40423853,2554.4,2554.1,3.91521782]
[1750413034377,0.36516781,2554.4,2554.2,3.91510382]
[1750413034677,10.36516781,2554.4,2554.2,3.91510382]
[1750413034905,10.0,2554.4,2554.2,3.91510382]
[1750413035214,10.0,2554.4,2554.1,3.91521089]
[1750413035418,10.0,2554.4,2554.2,3.9151138]
[1750413035793,10.0,2554.4,2554.1,3.91522744]
[1750413035994,10.0,2554.4,2554.2,3.91511068]
[1750413036188,10.0,2554.4,2554.0,3.91534734]
[1750413036399,10.0,2554.4,2554.2,3.9150524]
[1750413037417,0.03907112,2554.3,2553.9,0.8266]
[1750413037597,10.0,2554.4,2554.0,3.91541054]
[1750413037894,10.0,2554.4,2554.2,3.91511536]
[1750413039525,10.0,2554.4,2554.1,3.91519111]
[1750413040028,10.0,2554.4,2554.0,3.91533722]
[1750413040179,0.03907112,2554.3,2553.9,3.91548179]
[1750413040382,7.59530675,2554.3,2554.0,3.91539616]
[1750413040583,6.76303563,2554.1,2553.4,4.69554683]
[1750413040818,0.03907112,2554.0,2553.8,3.91566623]
[1750413041423,6.76303563,2553.9,2553.6,3.91593119]
[1750413041621,6.76303563,2553.9,2553.5,3.91616708]
[1750413041622,0.84727112,2553.8,2553.5,3.91616708]
[1750413041821,10.84727112,2553.8,2553.5,3.91616708]
[1750413042128,10.8082,2553.8,2553.5,3.91616708]